bitfinex/quotes_ETHUSD_20240630
["timestamp","ask_amount","ask_price","bid_price","bid_amount"]
[1719724595651,9.10642348,3364.3,3364.2,2.90910455]
[1719724597416,9.10642348,3364.3,3364.2,2.6446405]
[1719724606223,9.96942348,3364.3,3364.2,0.0677405]
[1719724609257,9.10642348,3364.3,3364.2,0.0677405]
[1719724610438,9.10642348,3364.3,3364.2,2.6253405]
[1719724610638,9.10642348,3364.3,3364.2,3.18787455]
[1719724613241,9.10642348,3364.3,3364.2,6.18787455]
[1719724615247,9.10642348,3364.3,3364.2,7.05087455]
[1719724624482,9.10642348,3364.3,3364.2,7.60087455]
[1719724624644,0.19602348,3364.3,3364.2,7.60087455]
[1719724624977,7.33,3364.9,3364.2,7.60087455]
[1719724624978,7.33,3364.9,3364.8,0.302]
[1719724625180,7.33,3364.9,3364.8,3.5095]
[1719724625379,7.33,3364.9,3364.8,3.86045]
[1719724625380,7.56558353,3364.9,3364.8,3.86045]
[1719724625557,7.56558353,3364.9,3364.8,6.86045]
[1719724628897,0.23558353,3364.9,3364.8,6.86045]
[1719724629206,7.33,3365.5,3364.8,6.86045]
[1719724629360,7.33,3365.5,3365.4,0.302]
[1719724629743,2.4811,3365.9,3365.4,0.302]
[1719724629957,2.4811,3365.9,3365.4,3.302]
[1719724630786,9.92,3366.1,3365.4,3.302]
[1719724631188,9.92,3366.1,3365.5,1.165]
[1719724631344,9.92,3366.1,3366.0,0.302]
[1719724633763,2.59,3366.1,3366.0,0.302]
[1719724634152,2.59,3366.1,3366.0,0.95295]
[1719724634680,2.59,3366.1,3366.0,3.29745]
[1719724634997,2.59,3366.1,3366.0,6.29745]
[1719724634998,2.82573336,3366.1,3366.0,6.29745]
[1719724637062,2.82573336,3366.1,3366.0,3.302]
[1719724637268,2.82573336,3366.1,3366.0,0.302]
[1719724649204,2.82573336,3366.1,3366.0,2.6792]
[1719724649593,2.82573336,3366.1,3366.0,5.6792]
[1719724652585,2.82573336,3366.1,3366.0,3.302]
[1719724652782,2.82573336,3366.1,3366.0,0.302]
[1719724668310,2.82573336,3366.1,3366.0,0.95622]
[1719724668516,2.82573336,3366.1,3366.0,3.44322]
[1719724668711,2.82573336,3366.1,3366.0,6.44322]
[1719724668970,2.82573336,3366.1,3366.0,7.30622]
[1719724669132,0.23573336,3366.1,3366.0,7.30622]
[1719724669517,7.33,3366.7,3366.6,0.302]
[1719724669723,2.4493,3367.0,3366.9,0.302]
[1719724670025,2.66494162,3367.0,3366.9,0.302]
[1719724670222,2.66494111,3367.0,3366.9,0.302]
[1719724673523,2.66493859,3367.0,3366.9,0.302]
[1719724674267,4.00973245,3367.0,3366.9,0.302]
[1719724674767,4.00972763,3367.0,3366.9,0.302]
[1719724676725,3.79409386,3367.0,3366.9,0.302]
[1719724676931,4.00972823,3367.0,3366.9,0.302]
[1719724679729,4.23807511,3367.0,3366.9,0.302]
[1719724680042,4.23807864,3367.0,3366.9,0.302]
[1719724680424,4.02244074,3367.0,3366.9,0.302]
[1719724680632,4.23807978,3367.0,3366.9,0.302]
[1719724681224,4.23807978,3367.0,3366.7,0.302]
[1719724681428,4.23807978,3367.0,3366.2,2.3054]
[1719724681429,2.67764688,3367.0,3366.9,0.302]
[1719724681756,3.75637105,3367.0,3366.7,0.302]
[1719724681925,0.863,3366.8,3366.7,0.302]
[1719724682669,1.09134688,3366.8,3366.5,0.302]
[1719724682874,3.2523,3366.6,3366.3,3.302]
[1719724683044,0.21572596,3366.5,3366.3,0.302]
[1719724683246,0.44406181,3366.5,3366.3,0.302]
[1719724685524,0.22833585,3366.5,3366.3,0.302]
[1719724685743,0.44403792,3366.5,3366.3,0.302]
[1719724688704,0.22833585,3366.5,3366.3,0.302]
[1719724688856,0.44404681,3366.5,3366.3,0.302]
[1719724690372,0.44404681,3366.5,3366.3,2.6074]
[1719724690563,0.22833585,3366.5,3366.4,3.0]
[1719724690765,0.21571096,3366.7,3366.4,3.0]
[1719724690962,0.22829958,3366.6,3366.5,0.302]
[1719724691293,0.863,3366.8,3366.5,0.302]
[1719724691294,0.21571096,3366.7,3366.5,0.302]
[1719724691594,0.22829958,3366.6,3366.5,0.302]
[1719724692101,0.21572397,3366.8,3366.5,0.302]
[1719724692386,0.863,3366.9,3366.5,0.302]
[1719724692387,1.0787227,3366.9,3366.5,0.302]
[1719724692556,0.22829958,3366.8,3366.5,0.302]
[1719724692759,0.44402228,3366.8,3366.5,0.302]
[1719724695037,0.44401893,3366.8,3366.5,0.302]
[1719724695462,0.863,3366.7,3366.5,0.302]
[1719724695695,1.07871935,3366.7,3366.5,0.302]
[1719724696104,0.44401893,3366.6,3366.5,0.302]
[1719724698141,0.22829958,3366.6,3366.5,0.302]
[1719724698345,0.44401587,3366.6,3366.5,0.302]
[1719724700647,0.22829958,3366.6,3366.5,0.302]
[1719724701050,0.4440118,3366.6,3366.5,0.302]
[1719724701350,0.22829958,3366.6,3366.5,0.302]
[1719724701724,0.22829958,3366.6,3366.5,3.25704]
[1719724701917,0.22829958,3366.6,3366.5,5.6963]
[1719724702142,0.21572771,3367.1,3366.5,5.6963]
[1719724702451,1.67849759,3367.2,3366.9,0.302]
[1719724702622,2.54149759,3367.2,3366.9,0.302]
[1719724702822,0.21572771,3367.1,3366.9,0.302]
[1719724703046,1.07872771,3367.2,3366.9,0.302]
[1719724704238,4.08326456,3367.2,3366.9,0.302]
[1719724704441,0.863,3367.0,3366.9,0.302]
[1719724705045,1.07873551,3367.0,3366.9,0.302]
[1719724705284,0.863,3367.0,3366.9,0.302]
[1719724709647,1.09135474,3367.0,3366.9,0.302]
[1719724709877,1.30711343,3367.0,3366.9,0.302]
[1719724710890,1.09135474,3367.0,3366.9,0.302]
[1719724711068,1.30711383,3367.0,3366.9,0.302]
[1719724714060,1.09135474,3367.0,3366.9,0.302]
[1719724714494,1.30711409,3367.0,3366.9,0.302]
[1719724717525,1.30711517,3367.0,3366.9,0.302]
[1719724717880,1.09135474,3367.0,3366.9,0.302]
[1719724718288,1.307115,3367.0,3366.9,0.302]
[1719724720623,1.30711455,3367.0,3366.9,0.302]
[1719724721419,0.44411455,3367.0,3366.9,0.302]
[1719724721628,0.22835474,3367.0,3366.9,0.302]
[1719724727216,0.21579164,3367.1,3366.9,0.302]
[1719724727418,0.22837997,3367.0,3366.9,0.302]
[1719724727720,0.21579164,3367.1,3366.9,0.302]
[1719724727886,0.22837997,3367.0,3366.9,0.302]
[1719724728287,0.21579164,3367.1,3366.9,0.302]
[1719724728500,0.22838155,3367.0,3366.9,0.302]
[1719724728712,1.09138155,3367.0,3366.9,0.302]
[1719724728906,0.863,3367.0,3366.9,0.302]
[1719724729120,1.09138155,3367.0,3366.9,0.302]
[1719724729434,1.30717319,3367.0,3366.9,0.302]
[1719724729843,1.09138155,3367.0,3366.9,0.302]
[1719724730143,1.30717319,3367.0,3366.9,0.302]
[1719724730343,1.7600618,3367.0,3366.9,0.302]
[1719724730840,1.76005084,3367.0,3366.9,0.302]
[1719724733347,1.76005131,3367.0,3366.9,0.302]
[1719724733531,1.76005234,3367.0,3366.9,0.302]
[1719724734956,1.09138155,3367.0,3366.9,0.302]
[1719724735519,1.76007283,3367.0,3366.9,0.302]
[1719724736966,1.76014812,3367.0,3366.9,0.302]
[1719724738981,0.89714812,3367.0,3366.9,0.302]
[1719724739932,0.22838155,3367.0,3366.9,0.302]
[1719724740132,0.89714395,3367.0,3366.9,0.302]
[1719724742418,0.22838155,3367.0,3366.9,0.302]
[1719724742700,0.89712512,3367.0,3366.9,0.302]
[1719724742910,0.89712367,3367.0,3366.9,0.302]
[1719724745814,0.22838155,3367.0,3366.9,0.302]
[1719724746177,1.38289994,3367.0,3366.9,0.302]
[1719724748433,0.22838155,3367.0,3366.9,0.302]
[1719724748735,1.15451839,3367.2,3366.9,0.302]
[1719724749049,0.22833269,3367.0,3366.9,0.302]
[1719724749823,1.15451945,3367.2,3366.9,0.302]
[1719724750287,0.22833269,3367.1,3366.9,0.302]
[1719724752439,1.15464095,3367.2,3366.9,0.302]
[1719724753518,1.38297507,3367.1,3366.9,2.6993]
[1719724753725,1.15464238,3367.0,3366.9,2.6993]
[1719724753888,0.22833269,3367.1,3366.9,2.6993]
[1719724754089,0.22834055,3367.0,3366.9,2.6993]
[1719724754596,1.15464238,3367.2,3366.9,2.6993]
[1719724755217,1.38325023,3367.1,3366.9,2.6993]
[1719724755405,1.15490968,3367.0,3366.9,2.6993]
[1719724755581,0.22834055,3367.1,3366.9,2.6993]
[1719724755782,1.15490968,3367.2,3366.9,2.6993]
[1719724756023,0.22834055,3367.0,3366.9,2.6993]
[1719724756196,1.15490968,3367.2,3366.9,2.6993]
[1719724756395,0.22834215,3367.0,3366.9,2.6993]
[1719724756884,1.15490968,3367.2,3366.9,2.6993]
[1719724757085,0.22834215,3367.0,3366.9,2.6993]
[1719724757311,1.15490968,3367.2,3366.9,2.6993]
[1719724757506,0.22834215,3367.0,3366.9,2.6993]
[1719724757720,1.15490968,3367.2,3366.9,2.6993]
[1719724757915,0.22834055,3367.0,3366.9,2.6993]
[1719724758218,1.15490968,3367.2,3366.9,2.6993]
[1719724758524,3.453,3367.3,3366.9,2.6993]
[1719724758525,1.1548856,3367.1,3366.9,2.6993]
[1719724758820,1.1548856,3367.0,3366.9,2.6993]
[1719724759022,0.22834055,3367.1,3366.9,2.6993]
[1719724759220,1.1548856,3367.2,3366.9,2.6993]
[1719724759385,0.22833742,3367.0,3366.9,2.6993]
[1719724759601,1.1548856,3367.2,3366.9,2.6993]
[1719724760189,0.22833742,3367.1,3366.9,2.6993]
[1719724761994,1.1549107,3367.2,3366.9,2.6993]
[1719724762193,0.22833742,3367.0,3366.9,2.6993]
[1719724762413,1.1549107,3367.2,3366.9,2.6993]
[1719724762902,0.22833742,3367.1,3366.9,2.6993]
[1719724764930,0.22833742,3367.1,3366.9,0.302]
[1719724767543,1.09133742,3367.1,3366.9,0.302]
[1719724767744,1.15490984,3367.0,3366.9,0.302]
[1719724768156,0.22833585,3367.0,3366.9,0.302]
[1719724768708,1.38309822,3367.0,3366.9,0.302]
[1719724769210,0.22833585,3367.0,3366.9,0.302]
[1719724769925,1.15476237,3367.2,3366.9,0.302]
[1719724770128,0.22833585,3367.0,3366.9,0.302]
[1719724770330,1.15476237,3367.2,3367.1,0.302]
[1719724771248,3.453,3367.3,3367.1,0.302]
[1719724771555,1.1549947,3367.2,3367.1,0.302]
[1719724775752,1.1549947,3367.2,3366.8,0.302]
[1719724776061,0.863,3367.0,3366.8,0.302]
[1719724777963,2.01788703,3367.0,3366.8,0.302]
[1719724778166,1.15495056,3366.9,3366.8,0.302]
[1719724778366,0.863,3367.0,3366.8,0.302]
[1719724784535,0.22832324,3366.9,3366.8,0.302]
[1719724785157,1.38330982,3366.9,3366.8,0.302]
[1719724786102,3.9209408,3366.9,3366.6,3.302]
[1719724786306,3.9209408,3366.9,3365.5,1.19035]
[1719724786307,0.863,3366.7,3366.3,0.302]
[1719724786607,1.15498658,3366.8,3366.3,0.302]
[1719724786608,0.863,3366.4,3366.3,0.302]
[1719724787209,1.09129644,3366.4,3366.3,0.302]
[1719724787417,2.24641127,3366.4,3366.3,0.302]
[1719724788259,2.24641127,3366.4,3366.2,3.0]
[1719724788482,1.15511483,3366.3,3366.2,3.0]
[1719724788770,1.15511483,3366.3,3366.1,0.302]
[1719724789130,1.15511483,3366.2,3366.1,0.302]
[1719724789466,1.15511483,3366.3,3366.1,0.302]
[1719724789666,1.38333244,3366.2,3366.1,0.302]
[1719724790406,1.38331331,3366.2,3366.1,0.302]
[1719724790763,1.38331614,3366.2,3366.1,0.302]
[1719724791286,0.22821761,3366.2,3366.1,0.302]
[1719724791486,1.15509853,3366.3,3366.1,0.302]
[1719724791671,1.15509853,3366.2,3366.1,0.302]
[1719724791872,1.3833177,3366.2,3366.1,0.302]
[1719724793490,1.38333989,3366.2,3366.1,0.302]
[1719724793692,0.22821917,3366.2,3366.1,0.302]
[1719724794025,1.15513257,3366.3,3366.1,0.302]
[1719724794181,1.15513257,3366.2,3366.1,0.302]
[1719724794378,1.38336121,3366.2,3366.1,0.302]
[1719724794901,0.22822864,3366.2,3366.1,0.302]
[1719724795341,1.15511747,3366.3,3366.1,0.302]
[1719724795545,1.38334611,3366.2,3366.1,0.302]
[1719724796318,0.22822864,3366.2,3366.1,0.302]
[1719724796748,1.15514543,3366.2,3366.1,0.302]
[1719724796883,1.38337407,3366.2,3366.1,0.302]
[1719724797323,0.22822864,3366.2,3366.1,0.302]
[1719724797630,1.15514543,3366.3,3366.1,0.302]
[1719724797834,1.38337407,3366.2,3366.1,0.302]
[1719724798335,0.22822864,3366.2,3366.1,0.302]
[1719724798631,1.15514543,3366.3,3366.1,0.302]
[1719724798835,1.38337407,3366.2,3366.1,0.302]
[1719724799330,0.22822864,3366.2,3366.1,0.302]
[1719724799686,1.15514543,3366.3,3366.1,0.302]
[1719724799889,1.38335806,3366.2,3366.1,0.302]
[1719724800306,0.22824441,3366.2,3366.1,0.302]
[1719724800791,0.22824441,3366.2,3366.1,3.302]
[1719724801005,1.15511798,3366.5,3366.1,3.302]
[1719724801330,1.15511798,3366.4,3366.1,3.302]
[1719724801629,1.38336712,3366.3,3366.1,3.302]
[1719724801787,0.22824914,3366.3,3366.1,3.302]
[1719724802237,0.863,3366.6,3366.1,3.302]
[1719724802394,0.22824914,3366.2,3366.1,3.302]
[1719724802727,0.863,3366.6,3366.1,3.302]
[1719724803437,0.22824914,3366.5,3366.1,3.302]
[1719724803942,1.38318684,3366.5,3366.1,3.302]
[1719724808732,1.15479622,3366.4,3366.1,3.302]
[1719724808916,0.863,3366.6,3366.1,3.302]
[1719724809241,0.22824914,3366.5,3366.1,3.302]
[1719724809614,1.38305816,3366.5,3366.1,3.302]
[1719724811858,0.22824914,3366.5,3366.1,3.302]
[1719724812153,1.38310215,3366.5,3366.1,3.302]
[1719724812305,1.15485301,3366.4,3366.1,3.302]
[1719724812645,1.15485301,3366.3,3366.1,3.302]
[1719724812850,0.22824914,3366.3,3366.1,3.302]
[1719724813054,1.15488279,3366.5,3366.1,3.302]
[1719724813229,1.15488279,3366.4,3366.1,3.302]
[1719724813550,1.15488279,3366.3,3366.1,3.302]
[1719724813850,0.863,3366.6,3366.1,3.302]
[1719724814747,0.22824914,3366.5,3366.1,3.302]
[1719724814951,1.38298559,3366.5,3366.1,3.302]
[1719724815153,1.15482964,3366.4,3366.1,3.302]
[1719724815322,1.15482964,3366.3,3366.1,3.302]
[1719724815505,0.863,3366.6,3366.1,3.302]
[1719724815705,0.22824914,3366.2,3366.1,3.302]
[1719724815925,1.15481461,3366.5,3366.1,3.302]
[1719724816119,0.22827437,3366.2,3366.1,3.302]
[1719724816436,1.15481461,3366.3,3366.1,3.302]
[1719724816632,0.22827437,3366.2,3366.1,3.302]
[1719724816938,1.15483519,3366.5,3366.1,3.302]
[1719724817143,0.22827437,3366.2,3366.1,3.302]
[1719724817351,1.15483519,3366.3,3366.1,3.302]
[1719724817655,1.38310956,3366.2,3366.1,3.302]
[1719724818160,0.22827437,3366.2,3366.1,3.302]
[1719724818312,0.863,3366.6,3366.1,3.302]
[1719724818313,1.15484949,3366.5,3366.1,3.302]
[1719724818642,1.38312386,3366.4,3366.1,3.302]
[1719724818843,1.15484949,3366.3,3366.1,3.302]
[1719724819038,1.15484949,3366.2,3366.1,3.302]
[1719724819225,1.38312386,3366.2,3366.1,3.302]
[1719724819629,0.22827437,3366.2,3366.1,3.302]
[1719724819831,1.15484949,3366.3,3366.1,3.302]
[1719724820160,1.38312386,3366.2,3366.1,3.302]
[1719724820362,0.22827437,3366.2,3366.1,3.302]
[1719724821143,1.09127437,3366.2,3366.1,3.302]
[1719724821351,1.09127437,3366.2,3365.4,0.302]
[1719724821352,4.88531683,3366.2,3365.4,0.302]
[1719724821529,0.863,3365.7,3365.4,0.302]
[1719724822031,0.2282255,3365.6,3365.4,0.302]
[1719724822225,1.38295557,3365.6,3365.4,0.302]
[1719724822424,0.2282255,3365.6,3365.4,0.302]
[1719724822837,0.2282255,3365.6,3365.4,3.302]
[1719724823037,1.38308741,3365.6,3365.4,3.0]
[1719724823238,2.01786191,3365.5,3365.2,0.302]
[1719724823669,0.2282255,3365.4,3365.2,0.302]
[1719724828167,0.2282255,3365.4,3365.2,3.302]
[1719724837984,0.2282255,3365.4,3365.2,3.85902]
[1719724838182,0.2282255,3365.4,3365.3,2.2682]
[1719724838337,2.01784838,3366.0,3365.7,0.302]
[1719724838839,0.25619361,3365.9,3365.7,0.302]
[1719724839054,1.41094548,3365.9,3365.7,0.302]
[1719724839443,0.25619361,3365.9,3365.7,0.302]
[1719724839742,1.15475726,3366.0,3365.7,0.302]
[1719724839937,0.25621568,3365.8,3365.7,0.302]
[1719724840484,3.453,3366.1,3365.7,0.302]
[1719724840681,0.25621568,3365.8,3365.7,0.302]
[1719724840976,1.15475108,3366.0,3365.7,0.302]
[1719724841146,0.25621568,3365.8,3365.7,0.302]
[1719724841344,1.15475108,3366.0,3365.7,0.302]
[1719724841863,0.25621568,3365.9,3365.7,0.302]
[1719724843885,1.1547482,3366.0,3365.7,0.302]
[1719724844071,0.25621568,3365.8,3365.7,0.302]
[1719724844586,1.1547482,3366.0,3365.7,0.302]
[1719724844803,0.25621568,3365.9,3365.7,0.302]
[1719724847183,1.1541651,3366.0,3365.7,0.302]
[1719724847507,0.25621568,3365.9,3365.7,0.302]
[1719724850126,1.41024092,3365.9,3365.7,0.302]
[1719724850330,1.15402524,3365.8,3365.7,0.302]
[1719724850529,1.15406033,3365.8,3365.7,0.302]
[1719724850891,1.41027601,3365.8,3365.7,0.302]
[1719724852921,0.25621568,3365.8,3365.7,0.302]
[1719724854691,1.41025959,3365.8,3365.7,0.302]
[1719724855309,1.41026918,3365.8,3365.7,0.302]
[1719724856198,0.25621568,3365.8,3365.7,0.302]
[1719724856600,0.25619518,3365.8,3365.7,0.302]
[1719724856834,1.15405613,3366.0,3365.7,0.302]
[1719724857133,1.11919518,3365.8,3365.7,0.302]
[1719724857437,2.27325131,3365.8,3365.7,0.302]
[1719724858007,2.27325131,3365.8,3365.4,0.302]
[1719724858245,0.863,3365.6,3365.4,0.302]
[1719724858443,3.1598,3365.6,3365.4,0.302]
[1719724858742,1.41024028,3365.5,3365.4,0.302]
[1719724859503,0.25618415,3365.5,3365.4,0.302]
[1719724859727,1.41022132,3365.5,3365.4,0.302]
[1719724861193,1.41022132,3365.5,3365.2,0.302]
[1719724861906,0.25618415,3365.5,3365.2,0.302]
[1719724862109,1.41014214,3365.5,3365.2,0.302]
[1719724862309,8.9144,3365.4,3365.2,0.302]
[1719724862575,1.15394266,3365.3,3365.0,3.302]
[1719724862861,1.15394266,3365.3,3365.2,0.302]
[1719724863423,1.15394266,3365.3,3365.0,3.302]
[1719724864433,1.15394266,3365.3,3365.1,3.0]
[1719724864434,9.7774,3365.2,3365.1,3.0]
[1719724864750,13.37564266,3365.2,3364.8,0.302]
[1719724864947,1.15394266,3365.1,3364.8,0.302]
[1719724865111,1.15381683,3365.1,3364.8,0.302]
[1719724865306,8.9144,3365.0,3364.8,0.302]
[1719724866337,1.15382462,3364.9,3364.8,0.302]
[1719724867130,8.9144,3365.0,3364.8,0.302]
[1719724867332,1.15381025,3364.9,3364.8,0.302]
[1719724868352,1.15382859,3364.9,3364.8,0.302]
[1719724868518,8.9144,3365.0,3364.8,0.302]
[1719724868921,1.15381693,3364.9,3364.8,0.302]
[1719724869252,8.9144,3365.0,3364.8,0.302]
[1719724871252,8.9144,3365.0,3364.9,2.2858]
[1719724871456,8.9144,3365.0,3364.9,5.2858]
[1719724872020,8.9144,3365.0,3364.9,3.0]
[1719724872258,8.9144,3365.0,3364.8,3.302]
[1719724874842,0.25611631,3364.9,3364.8,3.302]
[1719724883391,8.71351631,3365.0,3364.8,3.302]
[1719724883696,0.24759804,3364.9,3364.8,3.94708]
[1719724883899,0.24759804,3364.9,3364.8,3.27178]
[1719724884199,0.24759804,3364.9,3364.8,6.27178]
[1719724884697,0.24759804,3364.9,3364.8,3.302]
[1719724885863,0.24759804,3364.9,3364.8,0.302]
[1719724886209,0.24759804,3364.9,3364.8,3.302]
[1719724887366,0.24759804,3364.9,3364.8,0.302]
[1719724887610,0.24759804,3364.9,3364.8,3.302]
[1719724889365,0.24759804,3364.9,3364.8,0.302]
[1719724889603,0.24759804,3364.9,3364.8,3.302]
[1719724891903,0.24759804,3364.9,3364.8,0.302]
[1719724892084,0.24759804,3364.9,3364.8,3.302]
[1719724892270,0.24759804,3364.9,3364.8,0.302]
[1719724904415,1.40129207,3364.9,3364.8,0.302]
[1719724905153,0.24759804,3364.9,3364.8,0.302]
[1719724906374,1.40127009,3364.9,3364.8,0.302]
[1719724906659,0.24759804,3364.9,3364.8,0.302]
[1719724906959,1.40131443,3364.9,3364.8,0.302]
[1719724909916,1.4013765,3364.9,3364.8,0.302]
[1719724913186,1.40136915,3364.9,3364.8,0.302]
[1719724913542,0.24759804,3364.9,3364.8,0.302]
[1719724913904,1.40137184,3364.9,3364.8,0.302]
[1719724915338,0.24759804,3364.9,3364.8,0.302]
[1719724915567,1.40132682,3364.9,3364.8,0.302]
[1719724916512,1.40133049,3364.9,3364.8,0.302]
[1719724916809,1.40133067,3364.9,3364.8,0.302]
[1719724918115,1.40023007,3364.9,3364.8,0.302]
[1719724919415,0.24649744,3364.9,3364.8,0.302]
[1719724919568,1.40027842,3364.9,3364.8,0.302]
[1719724920785,2.65911789,3364.9,3364.6,0.302]
[1719724920985,1.15378098,3364.8,3364.6,0.302]
[1719724921224,12.27069729,3364.8,3364.4,0.302]
[1719724921399,1.40119569,3364.7,3364.4,0.302]
[1719724921811,1.15375907,3364.6,3364.4,0.302]
[1719724921992,0.24741471,3364.7,3364.4,0.302]
[1719724921993,1.15375907,3364.5,3364.4,0.302]
[1719724922374,0.24741471,3364.5,3364.4,0.302]
[1719724922573,1.15375907,3364.7,3364.4,0.302]
[1719724922776,0.24738474,3364.5,3364.4,0.302]
[1719724922974,1.15375907,3364.7,3364.4,0.302]
[1719724923174,0.24738474,3364.5,3364.4,0.302]
[1719724923415,1.15375907,3364.7,3364.4,0.302]
[1719724923614,0.24738474,3364.5,3364.4,0.302]
[1719724923791,1.15375907,3364.7,3364.4,0.302]
[1719724924275,0.24735951,3364.6,3364.4,0.302]
[1719724925793,1.15388155,3364.7,3364.4,0.302]
[1719724925993,0.24735791,3364.5,3364.4,0.302]
[1719724926234,1.15388155,3364.7,3364.4,0.302]
[1719724926738,0.24735477,3364.6,3364.4,0.302]
[1719724928138,1.40125953,3364.6,3364.4,0.302]
[1719724928290,1.15390306,3364.5,3364.4,0.302]
[1719724928496,1.15390306,3364.7,3364.4,0.302]
[1719724928797,0.24735477,3364.5,3364.4,0.302]
[1719724928997,1.15390306,3364.5,3364.4,0.302]
[1719724929339,1.40125467,3364.5,3364.4,0.302]
[1719724929494,0.24735161,3364.5,3364.4,0.302]
[1719724929693,1.15390306,3364.7,3364.4,0.302]
[1719724929901,0.24735161,3364.5,3364.4,0.302]
[1719724930109,1.15390306,3364.7,3364.4,0.302]
[1719724930315,0.24735161,3364.5,3364.4,0.302]
[1719724930520,1.15390306,3364.7,3364.4,0.302]
[1719724930721,0.24734844,3364.5,3364.4,0.302]
[1719724930918,1.15390306,3364.7,3364.4,0.302]
[1719724931149,0.24734844,3364.5,3364.4,0.302]
[1719724931304,8.71351631,3364.8,3364.4,0.302]
[1719724931507,0.24734844,3364.5,3364.4,0.302]
[1719724931725,1.15381591,3364.7,3364.4,0.302]
[1719724931925,0.24734844,3364.5,3364.4,0.302]
[1719724932125,1.15381591,3364.7,3364.4,0.302]
[1719724932331,0.24734531,3364.5,3364.4,0.302]
[1719724932618,1.15381591,3364.7,3364.4,0.302]
[1719724932831,0.24734531,3364.5,3364.4,0.302]
[1719724933133,0.24734531,3364.5,3364.4,0.202]
[1719724933456,1.15381591,3364.7,3364.4,0.202]
[1719724933761,3.00453685,3364.6,3364.4,0.202]
[1719724934054,1.15381591,3364.5,3364.4,0.202]
[1719724934410,1.40115648,3364.5,3364.4,0.202]
[1719724934612,1.40115955,3364.5,3364.4,0.202]
[1719724934850,2.65074057,3364.5,3364.2,3.2697405]
[1719724935120,1.41889659,3364.4,3364.3,3.0]
[1719724935438,1.41889659,3364.4,3364.2,0.2697405]
[1719724935621,1.66623716,3364.4,3364.2,0.2697405]
[1719724936504,8.71351631,3364.3,3364.2,0.2697405]
[1719724936764,11.47928213,3364.3,3364.2,0.2697405]
[1719724937717,10.3254596,3364.3,3364.2,0.2697405]
[1719724937937,11.47925216,3364.3,3364.2,0.2697405]
[1719724938135,10.3254596,3364.3,3364.2,0.2697405]
[1719724938337,11.47923619,3364.3,3364.2,0.2697405]
[1719724938919,10.3254596,3364.3,3364.2,0.2697405]
[1719724939861,11.47924286,3364.3,3364.2,0.2697405]
[1719724940273,10.3254596,3364.3,3364.2,0.2697405]
[1719724941237,8.96084425,3364.3,3364.2,0.2697405]
[1719724956518,10.11470464,3364.3,3364.2,0.2697405]
[1719724956887,8.96084425,3364.3,3364.2,0.2697405]
[1719724957470,10.11467627,3364.3,3364.2,0.2697405]
[1719724957898,8.96084425,3364.3,3364.2,0.2697405]
[1719724961173,10.1145865,3364.3,3364.2,0.2697405]
[1719724961574,8.96084425,3364.3,3364.2,0.2697405]
[1719724964119,10.11451966,3364.3,3364.2,0.2697405]
[1719724966402,8.96084425,3364.3,3364.2,0.2697405]
[1719724966943,10.11451552,3364.3,3364.2,0.2697405]
[1719724969867,10.11452985,3364.3,3364.2,0.2697405]
[1719724973022,8.96084425,3364.3,3364.2,0.2697405]
[1719724973208,10.11452159,3364.3,3364.2,0.2697405]
[1719724973750,10.11453142,3364.3,3364.2,0.2697405]
[1719724975668,8.96084425,3364.3,3364.2,0.2697405]
[1719724975874,10.11451962,3364.3,3364.2,0.2697405]
[1719724976372,8.96084425,3364.3,3364.2,0.2697405]
[1719724976574,10.11452311,3364.3,3364.2,0.2697405]
[1719724977431,10.11452311,3364.3,3364.2,0.0677405]
[1719724977662,10.11452311,3364.3,3364.2,3.27431455]
[1719724977832,8.96084425,3364.3,3364.2,6.5840405]
[1719724991741,8.96084425,3364.3,3364.2,7.1340405]
[1719724991742,7.14099864,3364.3,3364.2,7.1340405]
[1719724991920,7.14099864,3364.3,3364.2,7.84744455]
[1719724992085,0.24732794,3364.3,3364.2,7.84744455]
[1719724992483,7.33,3364.8,3364.3,2.4449]
[1719724992684,7.33,3364.8,3364.7,3.3079]
[1719724993128,7.33,3364.8,3364.7,6.3079]
[1719724993285,7.33,3364.8,3364.7,6.99963341]
[1719724993489,7.33,3365.4,3364.7,4.75673341]
[1719724993684,7.33,3365.4,3365.3,0.863]
[1719724994024,12.3,3365.5,3365.3,0.863]
[1719724994025,2.4197,3365.9,3365.3,0.863]
[1719724994234,2.4197,3365.9,3365.8,0.202]
[1719724994535,4.54828725,3365.9,3365.8,0.202]
[1719724994704,3.63379112,3365.9,3365.8,0.202]
[1719724994889,4.78740666,3365.9,3365.8,0.202]
[1719724995235,4.78740655,3365.9,3365.8,0.202]
[1719724997831,4.7871841,3365.9,3365.8,0.202]
[1719724998571,2.4197,3365.8,3365.6,0.202]
[1719724998862,1.15339298,3365.7,3365.6,0.202]
[1719724999014,1.3925141,3365.7,3365.6,0.202]
[1719725001241,1.39247519,3365.7,3365.6,0.202]
[1719725004165,0.23912112,3365.7,3365.6,0.202]
[1719725004382,1.39248318,3365.7,3365.6,0.202]
[1719725004620,1.15336206,3365.7,3365.6,0.202]
[1719725004738,1.39252005,3365.7,3365.6,0.202]
[1719725006071,2.3808,3365.6,3365.4,0.202]
[1719725006238,2.3808,3365.4,3365.0,0.202]
[1719725006438,3.77323979,3365.3,3365.0,0.202]
[1719725006649,2.61995639,3365.3,3365.0,0.202]
[1719725006881,1.15328389,3365.2,3365.0,0.202]
[1719725007166,2.61995639,3365.3,3365.0,0.202]